[Event "*** Titled Tuesday Blitz"]
[Site "Chess.com"]
[Date "2018.06.05"]
[Round "8"]
[White "Hrant_ChessMood"]
[Black "ChessWarrior7197"]
[Result "1/2-1/2"]
[WhiteElo "2912"]
[BlackElo "2692"]
[TimeControl "180+2"]
[EndTime "15:01:16 PDT"]
[Termination "Game drawn by repetition"]

1. d4 {[%clk 0:03:00.2]} 1... Nf6 {[%clk 0:03:01]} 2. Nf3 {[%clk 0:02:58.6]}
2... g6 {[%clk 0:03:00.6]} 3. Nc3 {[%clk 0:02:59.1]} 3... Bg7 {[%clk 0:02:59.2]}
4. e4 {[%clk 0:02:58.6]} 4... d6 {[%clk 0:03:00.6]} 5. Be2 {[%clk 0:02:59.1]}
5... O-O {[%clk 0:03:02]} 6. O-O {[%clk 0:03:00.6]} 6... a6 {[%clk 0:03:03.4]}
7. a4 {[%clk 0:02:59.8]} 7... Nc6 {[%clk 0:03:03.2]} 8. d5 {[%clk 0:03:00.1]}
8... Nb4 {[%clk 0:03:02.6]} 9. Re1 {[%clk 0:02:57.1]} 9... c5 {[%clk 0:03:03.4]}
10. h3 {[%clk 0:02:54.2]} 10... Rb8 {[%clk 0:02:52.4]} 11. Bf1 {[%clk
0:02:54.6]} 11... Nd7 {[%clk 0:02:52.1]} 12. Bf4 {[%clk 0:02:49.8]} 12... Qc7
{[%clk 0:02:41.1]} 13. Qd2 {[%clk 0:02:48]} 13... Re8 {[%clk 0:02:37.9]} 14. Nd1
{[%clk 0:02:38.4]} 14... a5 {[%clk 0:02:28.3]} 15. Nc3 {[%clk 0:02:38.4]} 15...
Qd8 {[%clk 0:02:08]} 16. Bb5 {[%clk 0:02:38.1]} 16... Rf8 {[%clk 0:02:06]} 17.
Rad1 {[%clk 0:02:32.7]} 17... Nb6 {[%clk 0:02:01.4]} 18. e5 {[%clk 0:02:28.8]}
18... Bf5 {[%clk 0:02:01.9]} 19. exd6 {[%clk 0:02:11.9]} 19... exd6 {[%clk
0:02:01.2]} 20. Ne4 {[%clk 0:02:02]} 20... Bxe4 {[%clk 0:01:42.5]} 21. Rxe4
{[%clk 0:02:00.9]} 21... Qf6 {[%clk 0:01:35.5]} 22. c3 {[%clk 0:01:53.6]} 22...
N4xd5 {[%clk 0:01:33.5]} 23. Bg3 {[%clk 0:01:49.5]} 23... Qf5 {[%clk 0:01:27.4]}
24. Ree1 {[%clk 0:01:43.7]} 24... Rbd8 {[%clk 0:01:24.3]} 25. Nh4 {[%clk
0:01:21.5]} 25... Qc8 {[%clk 0:01:23.5]} 26. Qc2 {[%clk 0:01:17.9]} 26... c4
{[%clk 0:01:03.7]} 27. Nf3 {[%clk 0:01:17.3]} 27... Qc5 {[%clk 0:00:59.9]} 28.
Nd4 {[%clk 0:01:12.1]} 28... Nc7 {[%clk 0:00:59.7]} 29. Re2 {[%clk 0:01:04.8]}
29... Qh5 {[%clk 0:00:49.8]} 30. Red2 {[%clk 0:00:56.3]} 30... Bxd4 {[%clk
0:00:48.1]} 31. Rxd4 {[%clk 0:00:58.2]} 31... Nxb5 {[%clk 0:00:49.5]} 32. axb5
{[%clk 0:00:47.5]} 32... Qxb5 {[%clk 0:00:48.7]} 33. Bxd6 {[%clk 0:00:48.9]}
33... Rfe8 {[%clk 0:00:47.3]} 34. Qc1 {[%clk 0:00:45.4]} 34... Nc8 {[%clk
0:00:42.5]} 35. Ba3 {[%clk 0:00:41.4]} 35... Rxd4 {[%clk 0:00:43.3]} 36. Rxd4
{[%clk 0:00:43.3]} 36... Qc6 {[%clk 0:00:39.3]} 37. Qf4 {[%clk 0:00:41.1]} 37...
b5 {[%clk 0:00:39.3]} 38. Kh2 {[%clk 0:00:38]} 38... Qb7 {[%clk 0:00:34.8]} 39.
Bc5 {[%clk 0:00:33]} 39... Qc6 {[%clk 0:00:35.3]} 40. Ba3 {[%clk 0:00:33.3]}
40... Qe6 {[%clk 0:00:34.2]} 41. f3 {[%clk 0:00:27.7]} 41... Qb6 {[%clk
0:00:32.6]} 42. Rd7 {[%clk 0:00:20.9]} 42... Qe6 {[%clk 0:00:25.7]} 43. Rc7
{[%clk 0:00:21.5]} 43... Ne7 {[%clk 0:00:21.5]} 44. Bxe7 {[%clk 0:00:16.2]}
44... Rxe7 {[%clk 0:00:22.4]} 45. Rc5 {[%clk 0:00:18.1]} 45... Re8 {[%clk
0:00:23.1]} 46. Rxb5 {[%clk 0:00:17.4]} 46... Qe2 {[%clk 0:00:21.4]} 47. Qd4
{[%clk 0:00:10.1]} 47... a4 {[%clk 0:00:19.6]} 48. Rb4 {[%clk 0:00:10.3]} 48...
Qc2 {[%clk 0:00:15.4]} 49. Qxc4 {[%clk 0:00:10.5]} 49... Kg7 {[%clk 0:00:10.8]}
50. Qd4+ {[%clk 0:00:11.4]} 50... Kg8 {[%clk 0:00:12]} 51. c4 {[%clk 0:00:08.6]}
51... Rc8 {[%clk 0:00:09.2]} 52. Qg4 {[%clk 0:00:07.1]} 52... Rd8 {[%clk
0:00:08.6]} 53. Qg5 {[%clk 0:00:06.1]} 53... Re8 {[%clk 0:00:06.9]} 54. Qf4
{[%clk 0:00:04.7]} 54... h5 {[%clk 0:00:07.2]} 55. Rb7 {[%clk 0:00:05.1]} 55...
Rf8 {[%clk 0:00:08.6]} 56. h4 {[%clk 0:00:03.9]} 56... Kg7 {[%clk 0:00:05.3]}
57. Qd4+ {[%clk 0:00:04.8]} 57... Kg8 {[%clk 0:00:06.7]} 58. c5 {[%clk
0:00:06.3]} 58... Re8 {[%clk 0:00:08.2]} 59. Rd7 {[%clk 0:00:06]} 59... Qc1
{[%clk 0:00:03.9]} 60. Rd8 {[%clk 0:00:03.6]} 60... Rxd8 {[%clk 0:00:05.4]} 61.
Qxd8+ {[%clk 0:00:05.3]} 61... Kh7 {[%clk 0:00:07.3]} 62. Qd4 {[%clk 0:00:06.1]}
62... Qc2 {[%clk 0:00:08.1]} 63. Kg3 {[%clk 0:00:06.4]} 63... Kg8 {[%clk
0:00:08.5]} 64. Qd8+ {[%clk 0:00:03.5]} 64... Kh7 {[%clk 0:00:09.3]} 65. Qd4
{[%clk 0:00:03.8]} 65... Kg8 {[%clk 0:00:09.9]} 66. Qb4 {[%clk 0:00:04.4]} 66...
Qc1 {[%clk 0:00:10.5]} 67. Qxa4 {[%clk 0:00:02.3]} 67... Qxc5 {[%clk 0:00:08.2]}
68. Qf4 {[%clk 0:00:03.2]} 68... Qe7 {[%clk 0:00:05.6]} 69. b4 {[%clk
0:00:04.2]} 69... Qe1+ {[%clk 0:00:07]} 70. Kh2 {[%clk 0:00:04.8]} 70... Qb1
{[%clk 0:00:08.9]} 71. Qd4 {[%clk 0:00:05.1]} 71... Qb3 {[%clk 0:00:09.4]} 72.
Qd8+ {[%clk 0:00:05.2]} 72... Kh7 {[%clk 0:00:10.3]} 73. Qe7 {[%clk 0:00:04]}
73... Kg7 {[%clk 0:00:10.1]} 74. Qe5+ {[%clk 0:00:04]} 74... Kg8 {[%clk
0:00:10.5]} 75. b5 {[%clk 0:00:04.9]} 75... Qb4 {[%clk 0:00:11.7]} 76. Kg3
{[%clk 0:00:05.6]} 76... Kh7 {[%clk 0:00:12.9]} 77. Kh3 {[%clk 0:00:03.1]} 77...
Kg8 {[%clk 0:00:12.3]} 78. Qd5 {[%clk 0:00:02.9]} 78... Qb1 {[%clk 0:00:11.3]}
79. Qe5 {[%clk 0:00:02.3]} 79... Qb4 {[%clk 0:00:09.6]} 80. Kg3 {[%clk
0:00:03.4]} 80... Kh7 {[%clk 0:00:09.8]} 81. Kh2 {[%clk 0:00:03.9]} 81... Qxh4+
{[%clk 0:00:09.1]} 82. Kg1 {[%clk 0:00:05.4]} 82... Qb4 {[%clk 0:00:10.9]} 83.
Kf2 {[%clk 0:00:06.1]} 83... h4 {[%clk 0:00:11.5]} 84. Qe2 {[%clk 0:00:03.5]}
84... Qc5+ {[%clk 0:00:11.5]} 85. Kf1 {[%clk 0:00:04.2]} 85... Qc1+ {[%clk
0:00:08.2]} 86. Kf2 {[%clk 0:00:05.3]} 86... Qc5+ {[%clk 0:00:09.2]} 87. Ke1
{[%clk 0:00:06.6]} 87... Qb4+ {[%clk 0:00:08.5]} 88. Kd1 {[%clk 0:00:06]} 88...
Qb1+ {[%clk 0:00:09.4]} 89. Kd2 {[%clk 0:00:07.3]} 89... Qb2+ {[%clk 0:00:10.9]}
90. Ke3 {[%clk 0:00:08.6]} 90... Qe5+ {[%clk 0:00:11.8]} 91. Kf2 {[%clk
0:00:08.2]} 91... Qc5+ {[%clk 0:00:12.7]} 92. Kf1 {[%clk 0:00:08.5]} 92... Qc1+
{[%clk 0:00:13.9]} 93. Kf2 {[%clk 0:00:08.8]} 93... Qc5+ {[%clk 0:00:15]} 94.
Ke1 {[%clk 0:00:10.7]} 94... Qb4+ {[%clk 0:00:11]} 95. Kd1 {[%clk 0:00:10.8]}
95... Qb1+ {[%clk 0:00:09.3]} 96. Kd2 {[%clk 0:00:12]} 96... Qb2+ {[%clk
0:00:10.5]} 97. Ke3 {[%clk 0:00:12.5]} 97... Qe5+ {[%clk 0:00:12]} 98. Kd2
{[%clk 0:00:11.7]} 98... Qb2+ {[%clk 0:00:12.7]} 1/2-1/2

[Event "*** Titled Tuesday Blitz"]
[Site "Chess.com"]
[Date "2018.06.05"]
[Round "9"]
[White "GadimbayliA"]
[Black "Zaven_ChessMood"]
[Result "1/2-1/2"]
[WhiteElo "2574"]
[BlackElo "2888"]
[TimeControl "180+2"]
[EndTime "15:03:08 PDT"]
[Termination "Game drawn by agreement"]

1. e4 {[%clk 0:03:01.3]} 1... c5 {[%clk 0:03:00]} 2. Nf3 {[%clk 0:03:00.4]} 2...
d6 {[%clk 0:03:01.1]} 3. d4 {[%clk 0:03:02]} 3... cxd4 {[%clk 0:03:02.3]} 4.
Nxd4 {[%clk 0:03:03.9]} 4... Nf6 {[%clk 0:03:03.8]} 5. Nc3 {[%clk 0:03:05.3]}
5... a6 {[%clk 0:03:05.2]} 6. g3 {[%clk 0:03:06.6]} 6... e5 {[%clk 0:03:04.2]}
7. Nf3 {[%clk 0:03:07.5]} 7... Be7 {[%clk 0:03:04.2]} 8. Bg2 {[%clk 0:03:06.2]}
8... b5 {[%clk 0:03:04.8]} 9. a4 {[%clk 0:02:59.7]} 9... b4 {[%clk 0:02:56.4]}
10. Nd5 {[%clk 0:03:00.3]} 10... Nxd5 {[%clk 0:02:52.8]} 11. Qxd5 {[%clk
0:02:59.7]} 11... Ra7 {[%clk 0:02:53.6]} 12. Be3 {[%clk 0:02:57.4]} 12... Rb7
{[%clk 0:02:48.8]} 13. O-O {[%clk 0:02:54.6]} 13... O-O {[%clk 0:02:47.6]} 14.
Nd2 {[%clk 0:02:53.7]} 14... Nd7 {[%clk 0:02:45.2]} 1/2-1/2

[Event "*** Titled Tuesday Blitz"]
[Site "Chess.com"]
[Date "2018.06.05"]
[Round "9"]
[White "Abund"]
[Black "tteshan"]
[Result "1-0"]
[WhiteElo "2505"]
[BlackElo "1994"]
[TimeControl "180+2"]
[EndTime "15:04:28 PDT"]
[Termination "Abund won by resignation"]

1. Nf3 {[%clk 0:03:01.9]} 1... c5 {[%clk 0:02:58.8]} 2. c4 {[%clk 0:03:02.5]}
2... g6 {[%clk 0:02:57.1]} 3. e4 {[%clk 0:03:00.8]} 3... Bg7 {[%clk 0:02:57]} 4.
Nc3 {[%clk 0:03:01.7]} 4... Nc6 {[%clk 0:02:57.5]} 5. d3 {[%clk 0:03:01.7]} 5...
e6 {[%clk 0:02:56.9]} 6. Be3 {[%clk 0:02:58.5]} 6... b6 {[%clk 0:02:55.5]} 7. d4
{[%clk 0:02:58.4]} 7... cxd4 {[%clk 0:02:53.8]} 8. Nxd4 {[%clk 0:02:58.7]} 8...
Nxd4 {[%clk 0:02:44.3]} 9. Bxd4 {[%clk 0:02:59.4]} 9... Nf6 {[%clk 0:02:45.7]}
10. e5 {[%clk 0:02:42.1]} 10... Nh5 {[%clk 0:02:30.1]} 11. Be2 {[%clk
0:02:26.7]} 11... Qc7 {[%clk 0:02:20.2]} 12. Nb5 {[%clk 0:02:21.3]} 12... Qd8
{[%clk 0:02:11]} 13. Nd6+ {[%clk 0:02:17.8]} 13... Kf8 {[%clk 0:02:11.8]} 14.
Bxh5 {[%clk 0:02:18.7]} 14... gxh5 {[%clk 0:02:08.7]} 15. Qf3 {[%clk 0:02:19.4]}
1-0

[Event "*** Titled Tuesday Blitz"]
[Site "Chess.com"]
[Date "2018.06.05"]
[Round "9"]
[White "FearNoEvil12"]
[Black "Leo_C"]
[Result "1-0"]
[WhiteElo "1955"]
[BlackElo "2163"]
[TimeControl "180+2"]
[EndTime "15:05:07 PDT"]
[Termination "FearNoEvil12 won by resignation"]

1. e4 {[%clk 0:03:01.9]} 1... c6 {[%clk 0:02:59.7]} 2. d4 {[%clk 0:03:01.4]}
2... d5 {[%clk 0:03:00.6]} 3. Nc3 {[%clk 0:03:02.7]} 3... dxe4 {[%clk
0:03:00.8]} 4. Nxe4 {[%clk 0:03:03.6]} 4... Bf5 {[%clk 0:03:01]} 5. Ng3 {[%clk
0:03:05]} 5... Bg6 {[%clk 0:03:01.6]} 6. Bc4 {[%clk 0:03:06.3]} 6... e6 {[%clk
0:03:02]} 7. N1e2 {[%clk 0:03:07.7]} 7... Bd6 {[%clk 0:03:01.9]} 8. O-O {[%clk
0:03:09]} 8... Qc7 {[%clk 0:03:00.2]} 9. f4 {[%clk 0:03:10]} 9... Nf6 {[%clk
0:02:56.2]} 10. f5 {[%clk 0:03:10.4]} 10... exf5 {[%clk 0:02:55.2]} 11. Nxf5
{[%clk 0:03:11.3]} 11... O-O {[%clk 0:02:54.8]} 12. Neg3 {[%clk 0:03:07.9]}
12... Nbd7 {[%clk 0:02:43.3]} 13. Bd3 {[%clk 0:03:08]} 13... Bxf5 {[%clk
0:02:40.3]} 14. Nxf5 {[%clk 0:03:06.8]} 14... Bxh2+ {[%clk 0:02:40.5]} 15. Kh1
{[%clk 0:03:08.1]} 15... Bd6 {[%clk 0:02:37.4]} 16. Qe1 {[%clk 0:02:45.4]} 16...
Rae8 {[%clk 0:02:31.2]} 17. Qh4 {[%clk 0:02:45.8]} 17... c5 {[%clk 0:02:04.3]}
18. Nxg7 {[%clk 0:02:44.6]} 18... Kxg7 {[%clk 0:02:02.1]} 19. Bh6+ {[%clk
0:02:44]} 19... Kh8 {[%clk 0:02:00.6]} 20. Rxf6 {[%clk 0:02:43.7]} 20... Bg3
{[%clk 0:01:59.4]} 21. Bg7+ {[%clk 0:02:14.1]} 21... Kxg7 {[%clk 0:01:55.1]} 22.
Qh6+ {[%clk 0:02:11]} 1-0

[Event "*** Titled Tuesday Blitz"]
[Site "Chess.com"]
[Date "2018.06.05"]
[Round "9"]
[White "ezkybel"]
[Black "AlexTruskavetsky"]
[Result "0-1"]
[WhiteElo "2333"]
[BlackElo "2288"]
[TimeControl "180+2"]
[EndTime "15:05:42 PDT"]
[Termination "AlexTruskavetsky won by resignation"]

1. e4 {[%clk 0:03:01.9]} 1... e5 {[%clk 0:02:58.9]} 2. Nf3 {[%clk 0:03:02.6]}
2... Nc6 {[%clk 0:02:58.9]} 3. Bc4 {[%clk 0:03:03.7]} 3... Bc5 {[%clk
0:02:58.2]} 4. b3 {[%clk 0:03:04.5]} 4... Nf6 {[%clk 0:02:56.7]} 5. Nc3 {[%clk
0:03:03.3]} 5... O-O {[%clk 0:02:48.6]} 6. O-O {[%clk 0:03:02.5]} 6... a6 {[%clk
0:02:39.3]} 7. Bb2 {[%clk 0:03:01.1]} 7... b5 {[%clk 0:02:39.2]} 8. Bd5 {[%clk
0:03:02.4]} 8... Re8 {[%clk 0:02:32.3]} 9. a3 {[%clk 0:02:54.6]} 9... Rb8 {[%clk
0:02:24.8]} 10. b4 {[%clk 0:02:54.3]} 10... Bb6 {[%clk 0:02:25.5]} 11. Bb3
{[%clk 0:02:51.2]} 11... Nd4 {[%clk 0:02:24]} 12. Nxd4 {[%clk 0:02:52.2]} 12...
exd4 {[%clk 0:02:23.3]} 13. Nd5 {[%clk 0:02:50.5]} 13... Nxd5 {[%clk 0:02:21.8]}
14. Bxd5 {[%clk 0:02:51]} 14... c6 {[%clk 0:02:20.4]} 15. Bb3 {[%clk 0:02:49.9]}
15... Rxe4 {[%clk 0:02:20.1]} 16. d3 {[%clk 0:02:44]} 16... Re8 {[%clk
0:02:08.7]} 17. Qh5 {[%clk 0:02:38.6]} 17... d5 {[%clk 0:02:07.7]} 18. Rfe1
{[%clk 0:02:39.8]} 18... Be6 {[%clk 0:02:07]} 19. Re2 {[%clk 0:02:28.3]} 19...
Qd6 {[%clk 0:02:01.4]} 20. Rae1 {[%clk 0:02:27.1]} 20... a5 {[%clk 0:02:01.9]}
21. bxa5 {[%clk 0:02:10.2]} 21... Bxa5 {[%clk 0:02:02.1]} 22. Bxd4 {[%clk
0:02:11.3]} 22... Bxe1 {[%clk 0:01:45.3]} 23. Rxe1 {[%clk 0:02:12.2]} 23... Bg4
{[%clk 0:01:33.8]} 0-1

[Event "*** Titled Tuesday Blitz"]
[Site "Chess.com"]
[Date "2018.06.05"]
[Round "9"]
[White "ehrenfeld"]
[Black "PrinceMurad09"]
[Result "1-0"]
[WhiteElo "2463"]
[BlackElo "2418"]
[TimeControl "180+2"]
[EndTime "15:05:55 PDT"]
[Termination "ehrenfeld won by resignation"]

1. e4 {[%clk 0:03:01.9]} 1... c5 {[%clk 0:03:00.9]} 2. d3 {[%clk 0:03:00.8]}
2... d5 {[%clk 0:02:59.3]} 3. exd5 {[%clk 0:03:00.6]} 3... Qxd5 {[%clk
0:03:00.4]} 4. Nc3 {[%clk 0:03:01.7]} 4... Qd8 {[%clk 0:03:01.8]} 5. g3 {[%clk
0:03:02.7]} 5... Nf6 {[%clk 0:03:01.9]} 6. Bg2 {[%clk 0:03:03.7]} 6... Nc6
{[%clk 0:03:02.1]} 7. Nf3 {[%clk 0:03:03.4]} 7... Bf5 {[%clk 0:03:01.5]} 8. O-O
{[%clk 0:03:03.3]} 8... e6 {[%clk 0:03:02.4]} 9. a4 {[%clk 0:02:59.5]} 9... Be7
{[%clk 0:03:03.4]} 10. Bf4 {[%clk 0:02:57.9]} 10... O-O {[%clk 0:03:03.7]} 11.
Ne5 {[%clk 0:02:56.6]} 11... Nxe5 {[%clk 0:03:02]} 12. Bxe5 {[%clk 0:02:57.3]}
12... Nd5 {[%clk 0:03:03.3]} 13. Nxd5 {[%clk 0:02:42.3]} 13... exd5 {[%clk
0:03:05.2]} 14. c4 {[%clk 0:02:43.5]} 14... Be6 {[%clk 0:02:48.7]} 15. Qb3
{[%clk 0:02:43.5]} 15... dxc4 {[%clk 0:02:36.9]} 16. dxc4 {[%clk 0:02:44.4]}
16... Qb6 {[%clk 0:02:37.8]} 17. Qxb6 {[%clk 0:02:44.4]} 17... axb6 {[%clk
0:02:39.7]} 18. b3 {[%clk 0:02:45.6]} 18... Ra7 {[%clk 0:02:21]} 19. Rad1 {[%clk
0:02:41.4]} 19... Rc8 {[%clk 0:02:18.8]} 20. h4 {[%clk 0:02:20.7]} 20... f6
{[%clk 0:02:19.8]} 21. Bf4 {[%clk 0:02:21.2]} 21... Kf7 {[%clk 0:02:21.2]} 22.
Rfe1 {[%clk 0:02:21.3]} 22... Rd8 {[%clk 0:02:15.8]} 23. Bc7 {[%clk 0:02:17.7]}
23... Rc8 {[%clk 0:01:46.5]} 24. Bxb6 {[%clk 0:02:16.2]} 24... Ra6 {[%clk
0:01:47.7]} 25. a5 {[%clk 0:02:17.1]} 25... Rb8 {[%clk 0:01:42.6]} 26. Rd2
{[%clk 0:02:17.2]} 26... h6 {[%clk 0:01:32.5]} 27. Rde2 {[%clk 0:02:16.4]} 1-0

[Event "*** Titled Tuesday Blitz"]
[Site "Chess.com"]
[Date "2018.06.05"]
[Round "9"]
[White "GGX0X0"]
[Black "nurmiTV"]
[Result "0-1"]
[WhiteElo "2310"]
[BlackElo "2481"]
[TimeControl "180+2"]
[EndTime "15:06:23 PDT"]
[Termination "nurmiTV won by resignation"]

1. e4 {[%clk 0:03:01.9]} 1... c5 {[%clk 0:03:00.5]} 2. Nf3 {[%clk 0:03:02.6]}
2... e6 {[%clk 0:03:01.9]} 3. g3 {[%clk 0:03:03.2]} 3... Nc6 {[%clk 0:03:02.2]}
4. Bg2 {[%clk 0:03:04]} 4... g6 {[%clk 0:03:03.7]} 5. O-O {[%clk 0:03:05]} 5...
Bg7 {[%clk 0:03:05.1]} 6. c3 {[%clk 0:03:05.5]} 6... Nge7 {[%clk 0:03:05.6]} 7.
d4 {[%clk 0:03:06.4]} 7... cxd4 {[%clk 0:03:06.9]} 8. cxd4 {[%clk 0:03:08.3]}
8... d5 {[%clk 0:03:08.8]} 9. e5 {[%clk 0:03:08.5]} 9... O-O {[%clk 0:03:03.9]}
10. Nc3 {[%clk 0:03:09.1]} 10... h6 {[%clk 0:03:03.9]} 11. h4 {[%clk 0:03:06.9]}
11... Nf5 {[%clk 0:03:01.4]} 12. Bh3 {[%clk 0:02:58.2]} 12... Qb6 {[%clk
0:03:00.8]} 13. Bxf5 {[%clk 0:02:43.4]} 13... gxf5 {[%clk 0:03:00.2]} 14. Na4
{[%clk 0:02:39.6]} 14... Qc7 {[%clk 0:02:56.2]} 15. Bf4 {[%clk 0:02:37.6]} 15...
b6 {[%clk 0:02:55]} 16. Rc1 {[%clk 0:02:37.5]} 16... Bd7 {[%clk 0:02:55.3]} 17.
Qd2 {[%clk 0:02:37.7]} 17... Kh7 {[%clk 0:02:55.2]} 18. Nc3 {[%clk 0:02:38.5]}
18... a6 {[%clk 0:02:55.3]} 19. h5 {[%clk 0:02:39.7]} 19... Rac8 {[%clk
0:02:53.6]} 20. Nh4 {[%clk 0:02:41]} 20... Qd8 {[%clk 0:02:52.8]} 21. f3 {[%clk
0:02:33]} 21... Rg8 {[%clk 0:02:53.1]} 22. Kh2 {[%clk 0:02:32.6]} 22... f6
{[%clk 0:02:47.7]} 23. exf6 {[%clk 0:02:25.8]} 23... Qxf6 {[%clk 0:02:42.2]} 24.
Rcd1 {[%clk 0:02:22]} 24... Nxd4 {[%clk 0:02:33.8]} 25. Ng6 {[%clk 0:02:20.8]}
25... Nc6 {[%clk 0:02:30.7]} 26. Rfe1 {[%clk 0:02:09.5]} 26... Be8 {[%clk
0:02:29.5]} 27. Rh1 {[%clk 0:01:50.8]} 27... d4 {[%clk 0:02:12.5]} 28. Ne2
{[%clk 0:01:44.5]} 28... e5 {[%clk 0:02:13.1]} 29. Bxe5 {[%clk 0:01:26.7]} 29...
Nxe5 {[%clk 0:02:15]} 30. Nxe5 {[%clk 0:01:27.3]} 30... Qxe5 {[%clk 0:02:14.8]}
31. Nxd4 {[%clk 0:01:28.3]} 31... Rd8 {[%clk 0:02:15]} 0-1

[Event "*** Titled Tuesday Blitz"]
[Site "Chess.com"]
[Date "2018.06.05"]
[Round "9"]
[White "Angry_Serb"]
[Black "goodtimes2020"]
[Result "1-0"]
[WhiteElo "2465"]
[BlackElo "2276"]
[TimeControl "180+2"]
[EndTime "15:06:51 PDT"]
[Termination "Angry_Serb won by resignation"]

1. e4 {[%clk 0:03:01.6]} 1... e6 {[%clk 0:03:00.5]} 2. d4 {[%clk 0:03:02.1]}
2... d5 {[%clk 0:03:00.9]} 3. Nc3 {[%clk 0:03:03.6]} 3... Nf6 {[%clk 0:03:00.6]}
4. exd5 {[%clk 0:03:03.1]} 4... exd5 {[%clk 0:03:01.3]} 5. Bg5 {[%clk
0:03:04.2]} 5... Bb4 {[%clk 0:02:59.4]} 6. Bd3 {[%clk 0:03:04.5]} 6... h6 {[%clk
0:02:34.2]} 7. Bf4 {[%clk 0:03:02.5]} 7... Bg4 {[%clk 0:02:27.8]} 8. f3 {[%clk
0:02:57.7]} 8... Be6 {[%clk 0:02:25.5]} 9. Ne2 {[%clk 0:02:56.1]} 9... Nc6
{[%clk 0:02:26.4]} 10. a3 {[%clk 0:02:56.1]} 10... Ba5 {[%clk 0:02:24.3]} 11.
Qd2 {[%clk 0:02:55.5]} 11... a6 {[%clk 0:02:17.8]} 12. g4 {[%clk 0:02:29.3]}
12... Qe7 {[%clk 0:01:59]} 13. O-O-O {[%clk 0:02:15.1]} 13... O-O-O {[%clk
0:01:37.5]} 14. Qe3 {[%clk 0:02:09.9]} 14... Rhe8 {[%clk 0:01:29.1]} 15. Na4
{[%clk 0:02:07.6]} 15... Kb8 {[%clk 0:01:26.7]} 16. Qf2 {[%clk 0:01:50.8]} 16...
g5 {[%clk 0:01:20.1]} 17. Bg3 {[%clk 0:01:47.9]} 17... Bc8 {[%clk 0:01:14.5]}
18. Kb1 {[%clk 0:01:40.2]} 18... Qe3 {[%clk 0:01:08.3]} 19. Qxe3 {[%clk
0:01:41.1]} 19... Rxe3 {[%clk 0:01:09]} 20. b4 {[%clk 0:01:42.3]} 20... Bb6
{[%clk 0:01:08.6]} 21. Nxb6 {[%clk 0:01:43.4]} 21... Rxf3 {[%clk 0:01:08.6]} 22.
Nxc8 {[%clk 0:01:43.1]} 22... Kxc8 {[%clk 0:01:09.3]} 23. Rdf1 {[%clk
0:01:41.4]} 23... Rxf1+ {[%clk 0:01:09.5]} 24. Rxf1 {[%clk 0:01:43.3]} 24... Ne4
{[%clk 0:01:10.6]} 25. Rxf7 {[%clk 0:01:43.7]} 25... Nxg3 {[%clk 0:01:05.6]} 26.
hxg3 {[%clk 0:01:43]} 26... Re8 {[%clk 0:01:06.9]} 27. Kc1 {[%clk 0:01:43.1]}
1-0

[Event "*** Titled Tuesday Blitz"]
[Site "Chess.com"]
[Date "2018.06.05"]
[Round "9"]
[White "gmjlh"]
[Black "NDePinEsPeRG"]
[Result "0-1"]
[WhiteElo "2614"]
[BlackElo "2643"]
[TimeControl "180+2"]
[EndTime "15:07:27 PDT"]
[Termination "NDePinEsPeRG won on time"]

1. d4 {[%clk 0:03:01.9]} 1... Nf6 {[%clk 0:02:59.8]} 2. Nf3 {[%clk 0:03:01.7]}
2... c5 {[%clk 0:02:56.1]} 3. d5 {[%clk 0:03:02.1]} 3... d6 {[%clk 0:02:56.8]}
4. Nc3 {[%clk 0:03:02]} 4... g6 {[%clk 0:02:57.4]} 5. e4 {[%clk 0:03:01.2]} 5...
Bg7 {[%clk 0:02:59]} 6. h3 {[%clk 0:02:59.8]} 6... O-O {[%clk 0:02:59.3]} 7. Be2
{[%clk 0:03:00.6]} 7... e6 {[%clk 0:03:00.1]} 8. O-O {[%clk 0:03:00.4]} 8...
exd5 {[%clk 0:03:00.8]} 9. exd5 {[%clk 0:03:01]} 9... Na6 {[%clk 0:03:01.5]} 10.
a4 {[%clk 0:02:55.4]} 10... Nb4 {[%clk 0:02:57]} 11. Bc4 {[%clk 0:02:42.7]}
11... Bf5 {[%clk 0:02:50]} 12. Ne1 {[%clk 0:02:42.9]} 12... Re8 {[%clk
0:02:48.4]} 13. Na2 {[%clk 0:02:15.2]} 13... Re4 {[%clk 0:02:23.9]} 14. Bb3
{[%clk 0:02:05.1]} 14... Nxa2 {[%clk 0:02:16.9]} 15. Bxa2 {[%clk 0:01:50.4]}
15... Rxa4 {[%clk 0:02:16.9]} 16. g4 {[%clk 0:01:21.8]} 16... Nxg4 {[%clk
0:01:58.9]} 17. hxg4 {[%clk 0:01:22.1]} 17... Rxg4+ {[%clk 0:01:58.8]} 18. Ng2
{[%clk 0:01:21.1]} 18... Qh4 {[%clk 0:01:58.9]} 19. Bf4 {[%clk 0:00:03.9]} 19...
Rxg2+ {[%clk 0:01:48.3]} 20. Kxg2 {[%clk 0:00:05.8]} 20... Bh3+ {[%clk
0:01:41.5]} 21. Kg1 {[%clk 0:00:06.7]} 21... Qxf4 {[%clk 0:01:42.2]} 0-1